[Event "97th Argentine Championship 2022"]
[Site "Barichole"]
[Date "2022.12.09"]
[Round "10.4"]
[White "Acosta, Pablo Ismael"]
[Black "Sorin, Ariel"]
[Result "1/2-1/2"]
[ECO "E61"]
[WhiteElo "2461"]
[BlackElo "2363"]
[Annotator "TA"]
[PlyCount "90"]
[EventDate "2022.12.01"]
[EventType "tourn"]
[EventCountry "ARG"]
[SourceTitle "playchess.com"]
[Source "ChessBase"]
[SourceQuality "1"]
[TimeControl "40/5400+30:1800+30"]

{[%evp 15,90,33,28,36,55,14,30,18,18,19,20,14,30,0,16,17,4,9,12,0,0,0,0,0,0,0,0,6,0,0,13,14,40,0,0,0,72,72,72,0,0,0,0,0,0,0,0,14,18,0,0,0,0,0,2,-13,-33,-88,-80,-86,-22,-346,-346,-338,-312,-390,-180,-180,-180,-180,-180,-180,-180,-180,0,-168,0]} 1. d4 {[%emt 0:00:05]} Nf6 {[%emt 0:00:05]} 2. Nf3 {[%emt 0:00:15]} g6 {[%emt 0:00:06]} 3. c4 {[%emt 0:00:34]} Bg7 {[%emt 0:00:04]} 4. Nc3 {[%emt 0:00:04]} d6 {[%emt 0:00:11]} 5. Bg5 {[%emt 0:00:06]} h6 {[%emt 0:01:01]} 6. Bh4 {[%emt 0:00:35]} O-O {[%emt 0:00:17]} 7. e3 {[%emt 0:05:08]} Nbd7 {[%emt 0:01:42]} 8. Qc2 {[%emt 0:06:57]} e5 {[%emt 0:02:00]} 9. dxe5 {[%emt 0:05:45] E61: King's Indian: Early deviations for White, including Smyslov System.} dxe5 {[%emt 0:00:48]} 10. O-O-O {[%emt 0:01:13] [#]} (10. Rd1 $5 {[%cal Rf3e5]}) 10... Re8 $146 {[%emt 0:08:43]} ({Predecessor:} 10... Qe8 11. Bxf6 Nxf6 12. Bd3 c6 13. h3 Rb8 14. g4 b5 15. Nd2 Be6 16. Rdg1 bxc4 17. Bxc4 Bxc4 18. Nxc4 {0-1 (34) Al Omari,D (2152)-Hassan,J Istanbul 2000}) 11. g4 {[%emt 0:01:06] White has an edge.} c6 {[%emt 0:02:41]} 12. Nd2 {[%emt 0:27:31]} Qe7 {[%emt 0:13:54]} 13. Nde4 {[%emt 0:07:28]} Nc5 {[%emt 0:07:24]} (13... g5 {simplifies} 14. Bg3 Nxe4 15. Nxe4 Nf6) 14. Be2 {[%emt 0:05:25]} Be6 {[%emt 0:03:34]} (14... Bxg4 $2 15. Bxg4 Rad8 16. h3 $18) 15. Nxc5 {[%emt 0:06:25]} (15. Bxf6 {simplifies} Bxf6 16. Nxc5 Qxc5 17. h4) 15... Qxc5 {[%emt 0:00:22]} 16. Bxf6 {[%emt 0:00:05]} Bxf6 {[%emt 0:00:10]} 17. Ne4 {[%emt 0:00:03][%csl LRc5,LRf6]} Qe7 {[%emt 0:00:24]} 18. h4 {[%emt 0:10:17]} Bxh4 {[%emt 0:04:09]} 19. Rh2 {[%emt 0:00:54]} Bf6 {[%emt 0:13:29]} 20. Rxh6 {[%emt 0:00:09]} Bg7 {[%emt 0:00:16]} 21. Rh2 {[%emt 0:00:27]} Red8 {[%emt 0:02:31]} 22. Rdh1 {[%emt 0:01:54]} b5 {[%emt 0:03:15]} 23. Rh7 {[%emt 0:19:34]} (23. cxb5 $2 cxb5 24. Bxb5 Rac8 $19) 23... bxc4 {[%emt 0:06:49]} 24. Bxc4 {[%emt 0:00:00]} (24. g5 $5 {[%cal Re2c4]}) 24... Bxg4 {[%emt 0:00:56]} 25. f4 {[%emt 0:00:00]} Rd1+ {[%emt 0:11:24]} 26. Rxd1 $16 {[%emt 0:00:00] White is much more active.} Bxd1 {[%emt 0:00:04][%mdl 64]} 27. Rxg7+ {[%emt 0:00:00] The board is on fire.} (27. Kxd1 $16 {Hoping for Ng5.} Rd8+ 28. Kc1 Kxh7 29. Ng5+ Kg8 30. Nxf7 (30. Bxf7+ Kf8 $11)) 27... Kxg7 $11 {[%emt 0:00:11]} 28. Qxd1 {[%emt 0:00:00][%cal Of4f5]} exf4 {[%emt 0:00:37]} 29. Qd4+ {[%emt 0:00:00]} f6 {[%emt 0:00:22] Threatens to win with ...Rd8.} 30. exf4 {[%emt 0:00:00]} Rd8 {[%emt 0:02:11]} 31. Qe3 {[%emt 0:00:00][%cal Of4f5]} c5 {[%emt 0:01:31] Against f5. Strongly threatening ...Rd4.} 32. f5 {[%emt 0:01:23][%cal Oe3g1]} ({Worse is} 32. Qxc5 Qxe4 33. Qc7+ Kh6 34. Qxd8 Qxc4+ 35. Kd1 Qf1+ 36. Kc2 Qc4+ 37. Kd1 Qf1+ 38. Kd2 Qxf4+ 39. Kd3 Qg3+ 40. Kc4 Qf2 41. Qf8+ Kh5 $19) 32... Rd4 {[%emt 0:05:22]} 33. Be6 {[%emt 0:01:09]} Qc7 {[%emt 0:00:54]} 34. Nd2 {[%emt 0:02:05] And now fxg6 would win.} Qf4 {[%emt 0:02:02]} 35. Qe2 {[%emt 0:00:46]} g5 {[%emt 0:00:52][%mdl 1024] Black has compensation.} 36. Kc2 {[%emt 0:00:34] [#]} ({White should try} 36. b3 $15) 36... g4 $1 $17 {[%emt 0:00:18]} 37. Bc8 {[%emt 0:00:26]} Kh6 {[%emt 0:00:43]} (37... Qe5 $17 38. Qxe5 fxe5) 38. Qe1 {[%emt 0:00:29][%mdl 8192]} (38. Bb7 $1 $11 {and White has nothing to worry.}) 38... g3 $19 {[%emt 0:01:07]} 39. Bb7 {[%emt 0:00:32] Against g2} Qxf5+ {[%emt 0:01:02]} 40. Ne4 {[%emt 0:00:00]} g2 {[%emt 0:00:00] Against Qh1+} (40... Qf3 $142 {White must now prevent ...g2.} 41. b3 g2 42. Nxc5 Qf5+ 43. Kb2 Qxc5 44. Bxg2 Rf4) 41. Qh4+ {[%emt 0:01:59]} Kg7 {[%emt 0:02:05]} 42. Qg3+ {[%emt 0:00:07]} Qg6 {[%emt 0:02:10]} 43. Qc7+ {[%emt 0:00:52]} Qf7 {[%emt 0:03:07]} 44. Qg3+ {[%emt 0:00:17]} Qg6 {[%emt 0:00:06]} 45. Qc7+ {[%emt 0:00:10] [#]} Qf7 $2 {[%emt 0:00:06] Weighted Error Value: White=0.21 (precise) /Black=0.19 (very precise)} ({Avoid the trap} 45... Kg8 $2 46. Qc8+ Kh7 47. Qc7+ Kg8 48. Qc8+ Kg7 49. Qc7+) (45... Kh6 $1 $19 46. Qh2+ Kg7 47. Qc7+) 1/2-1/2

[Event "97th Argentine Championship 2022"]
[Site "Barichole"]
[Date "2022.12.09"]
[Round "10.5"]
[White "Gaitan, Juan Manuel"]
[Black "Mareco, Sandro"]
[Result "0-1"]
[ECO "E11"]
[WhiteElo "2347"]
[BlackElo "2619"]
[Annotator "TA"]
[PlyCount "74"]
[EventDate "2022.12.01"]
[EventType "tourn"]
[EventCountry "ARG"]
[SourceTitle "playchess.com"]
[Source "ChessBase"]
[SourceQuality "1"]
[TimeControl "40/5400+30:1800+30"]

{[%evp 16,74,7,0,0,0,3,0,-7,-13,0,0,0,-13,0,-61,-63,-53,-42,-42,-42,-43,-48,-87,-83,-77,-61,-80,-85,-139,-129,-128,-84,-75,-84,-72,-85,-87,-63,-64,-67,-73,-74,-74,-66,-65,-60,-60,-52,-49,-48,-47,-51,-89,-70,-516,-537,-941,-276,-1041,-700]} 1. d4 {[%emt 0:00:06]} Nf6 {[%emt 0:00:33]} 2. c4 {[%emt 0:00:08]} e6 {[%emt 0:00:04]} 3. Nf3 {[%emt 0:00:04]} d5 {[%emt 0:00:04]} 4. g3 {[%emt 0:00:05]} Bb4+ {[%emt 0:00:07]} 5. Bd2 {[%emt 0:00:04]} Be7 {[%emt 0:00:04]} 6. Bg2 {[%emt 0:00:10]} O-O {[%emt 0:00:08]} 7. Qc2 {[%emt 0:00:16]} Nbd7 {[%emt 0:00:13]} 8. O-O {[%emt 0:00:11]} c6 {[%emt 0:00:03]} 9. Bg5 {[%emt 0:06:46]} h6 {[%emt 0:04:26] E11: Bogo-Indian.} 10. Bxf6 {[%emt 0:00:53]} Nxf6 {[%emt 0:02:18]} 11. Nbd2 {[%emt 0:01:20]} b6 {[%emt 0:14:47] The position is equal.} 12. Ne5 {[%emt 0:19:47]} Bb7 {[%emt 0:00:04]} 13. Nd3 {[%emt 0:03:30] [#]} a5 $146 {[%emt 0:16:59]} ({Predecessor:} 13... Nd7 14. Rfd1 Rc8 15. Rac1 Bf6 16. e3 c5 17. dxc5 Nxc5 18. Nxc5 Rxc5 19. Qb1 Qa8 20. cxd5 {½-½ (19) Gheorghiu,F (2394)-Pinol Fulgoni,F (2257) Lausanne 2005}) 14. Rfd1 {[%emt 0:06:29]} Rc8 {[%emt 0:03:56]} 15. c5 {[%emt 0:07:13]} (15. a3 $11) 15... Ba6 $15 {[%emt 0:00:08]} 16. cxb6 {[%emt 0:01:29]} Bxd3 {[%emt 0:00:18]} 17. Qxd3 {[%emt 0:04:22]} Qxb6 {[%emt 0:01:14]} 18. b3 {[%emt 0:00:44]} c5 {[%emt 0:00:11]} 19. dxc5 {[%emt 0:03:52]} Bxc5 {[%emt 0:00:13]} 20. e3 {[%emt 0:00:06]} Ba3 {[%emt 0:00:25]} 21. Rab1 {[%emt 0:00:09][%cal Ob3b4] [#] And now b4! would win.} Qb4 {[%emt 0:00:58]} 22. e4 {[%emt 0:02:23]} (22. Ra1 $142) 22... Rc3 $17 {[%emt 0:00:24]} 23. Qe2 {[%emt 0:00:05]} Rfc8 {[%emt 0:00:42]} 24. exd5 {[%emt 0:01:26]} exd5 {[%emt 0:00:04]} 25. Nf1 {[%emt 0:04:50]} Rc2 {[%emt 0:00:26]} 26. Qf3 {[%emt 0:00:06]} Rxa2 {[%emt 0:14:26] [#] Strongly threatening ...Rcc2. Black has more active pieces. The white rooks are badly placed.} 27. Ne3 {[%emt 0:00:11] Inhibits Rcc2.} Qb6 $1 {[%emt 0:08:32]} ({But not} 27... d4 28. Qf5 Re8 29. Nd5 Nxd5 30. Bxd5 $11) 28. Nxd5 {[%emt 0:15:56]} Nxd5 {[%emt 0:00:13]} 29. Rxd5 {[%emt 0:00:02]} Rcc2 {[%emt 0:10:50][%cal Rc2f2]} 30. Rf1 {[%emt 0:01:08]} Bc5 {[%emt 0:00:56][%cal Rc2f2]} (30... g6 {seems wilder.} 31. Rd7 Rxf2 32. Rxf2 Rxf2 33. Rb7 Rxf3+ 34. Rxb6 Bc5+) 31. Kh1 {[%emt 0:08:39]} Rxf2 {[%emt 0:03:08]} ({Resist} 31... Bxf2 32. Rd7 Qe6 33. Rd8+ (33. Qa8+ Kh7 $14) 33... Kh7 34. Qe4+ g6 35. Qb7 $16) (31... g6 {looks sharper.} 32. Rd3 Rxf2 33. Qd5 Qf6) 32. Rxf2 {[%emt 0:00:03]} Rxf2 {[%emt 0:00:06]} 33. Qc3 {[%emt 0:00:23]} Bb4 $40 {[%emt 0:00:22][%mdl 128] Black is up to no good.} 34. Qc8+ {[%emt 0:00:17]} Bf8 {[%emt 0:00:09]} 35. Qc3 {[%emt 0:03:45][%mdl 8192]} ({Better is} 35. Rd8 $15 Qb4 36. h4) 35... a4 $1 $19 {[%emt 0:10:25][%cal Ba5a4,Ba4a3][%mdl 32]} 36. b4 {[%emt 0:03:08]} Bxb4 $2 {[%emt 0:01:21]} (36... a3 37. Qxa3 Qe6) 37. Qc4 $2 {[%emt 0:00:13]} (37. Qd4 Qxd4 38. Rxd4) 37... a3 {[%emt 0:03:19] Weighted Error Value: White=0.63/Black=0.22 (precise)} 0-1

[Event "97th Argentine Championship 2022"]
[Site "Barichole"]
[Date "2022.12.09"]
[Round "10.6"]
[White "Valerga, Diego"]
[Black "Paveto, Kevin"]
[Result "1/2-1/2"]
[ECO "D90"]
[WhiteElo "2438"]
[BlackElo "2431"]
[Annotator "TA"]
[PlyCount "62"]
[EventDate "2022.12.01"]
[EventType "tourn"]
[EventCountry "ARG"]
[SourceTitle "playchess.com"]
[Source "ChessBase"]
[SourceQuality "1"]
[TimeControl "40/5400+30:1800+30"]

{[%evp 12,62,39,0,0,0,0,0,0,0,0,0,0,0,0,0,0,0,0,0,0,0,0,0,0,0,33,15,28,25,67,80,95,91,115,66,69,66,75,72,78,75,226,0,0,0,0,0,-1,-9,-4,-3,-4]} 1. Nf3 {[%emt 0:00:05] Krasenkow,Michal} Nf6 {[%emt 0:00:22]} 2. c4 {[%emt 0:00:06]} g6 {[%emt 0:00:05]} 3. Nc3 {[%emt 0:00:07]} d5 {[%emt 0:00:03]} 4. cxd5 {[%emt 0:00:07]} Nxd5 {[%emt 0:00:06]} 5. Qb3 {[%emt 0:00:12]} Nb6 {[%emt 0:00:07]} 6. d4 {[%emt 0:00:08]} Bg7 {[%emt 0:00:18]} 7. e4 {[%emt 0:00:07]} Bg4 {[%emt 0:00:56] D90: Grünfeld: 4 Nf3 Bg7 sidelines.} 8. Bb5+ {[%emt 0:02:03]} c6 {[%emt 0:00:08]} 9. Ng5 {[%emt 0:00:13]} O-O {[%emt 0:00:10]} 10. Be2 {[%emt 0:00:07]} Bxe2 {[%emt 0:00:07]} 11. Nxe2 {[%emt 0:00:07]} c5 {[%emt 0:02:31] 11...Na6 is not played anymore.} 12. dxc5 {[%emt 0:02:58][%cal Oe1g1] Threatens to win with 0-0!} N6d7 $1 {[%emt 0:00:14]} 13. Qxb7 {[%emt 0:01:19]} Qa5+ {[%emt 0:00:45]} 14. Bd2 {[%emt 0:01:00]} Qa6 {[%emt 0:01:03]} 15. c6 {[%emt 0:01:36]} ({Of course not} 15. Qxa8 Nc6 $17) 15... Qxc6 {[%emt 0:00:23]} 16. Qxc6 {[%emt 0:00:07]} Nxc6 {[%emt 0:00:04]} 17. Rc1 $36 {[%emt 0:00:11][%mdl 2048] Black is under pressure.} Rac8 {[%emt 0:06:46]} 18. b3 {[%emt 0:01:46]} (18. Bc3 {feels hotter.} Bh6 19. Rd1 Rfd8 20. f4) 18... Bb2 {[%emt 0:01:56]} (18... Rfd8 $5 {[%cal Rd7e5]}) 19. Rd1 {[%emt 0:06:10] [#]} Nc5 $146 {[%emt 0:06:05]} ({Predecessor:} 19... Nce5 20. Be3 h6 21. Nf3 Nxf3+ 22. gxf3 Ne5 23. f4 Ng4 24. Bxa7 Ra8 25. Rd2 Ba3 {1-0 (47) Jakovenko,D (2747)-Vachier Lagrave,M (2757) Tashkent 2014 CBM 163 [Krasenkow,Michal]}) 20. O-O {[%emt 0:03:10]} Rfd8 {[%emt 0:08:44]} 21. Be3 {[%emt 0:08:45]} Rxd1 {[%emt 0:02:27]} 22. Rxd1 {[%emt 0:00:07]} Nb4 {[%emt 0:00:05]} 23. Rd2 {[%emt 0:29:03] Against h6} ({White should try} 23. Nf4 $16 {And now Bxc5 would win.} Nb7 24. Rd7 (24. Bxa7 Nxa2 25. Nd5 Ba3 $16)) 23... Ncd3 {[%emt 0:06:18]} 24. Kf1 {[%emt 0:09:43]} (24. Bxa7 $2 {perishes.} Bc1 25. Rd1 Bxg5 $19) 24... a6 {[%emt 0:06:49]} 25. Nf3 {[%emt 0:02:01]} Ba3 {[%emt 0:09:57]} 26. Ne1 {[%emt 0:06:48]} Nc1 {[%emt 0:09:35] [#]} (26... Nxe1 $16 27. Kxe1 Nc2+ 28. Kd1 Nxe3+ 29. fxe3 f6) 27. Nxc1 $2 {[%emt 0:14:48]} (27. Nc3 $1 $18 {[%cal Rc3b1][%mdl 512]}) 27... Bxc1 $11 {[%emt 0:00:21] The position is equal.} 28. Re2 {[%emt 0:01:08]} Bxe3 {[%emt 0:01:53]} 29. Rxe3 {[%emt 0:00:23]} Nxa2 {[%emt 0:02:02]} 30. Nd3 {[%emt 0:00:20] Prevents Rc1+.} a5 {[%emt 0:14:43]} 31. Re2 {[%emt 0:02:07]} Nc1 {[%emt 0:00:42] Weighted Error Value: White=0.16 (very precise) /Black=0.13 (very precise)} 1/2-1/2

[Event "97th Argentine Championship 2022"]
[Site "Barichole"]
[Date "2022.12.10"]
[Round "11.1"]
[White "Pichot, Alan"]
[Black "Fiorito, Joaquin"]
[Result "1-0"]
[ECO "C02"]
[WhiteElo "2637"]
[BlackElo "2344"]
[Annotator "TA"]
[PlyCount "59"]
[EventDate "2022.12.01"]
[EventType "tourn"]
[EventCountry "ARG"]
[SourceTitle "playchess.com"]
[Source "ChessBase"]
[SourceQuality "1"]
[TimeControl "40/5400+30:1800+30"]

{[%evp 19,59,16,22,7,25,19,35,22,37,0,0,0,0,0,0,0,8,0,13,12,31,30,23,25,39,5,39,33,39,39,39,31,60,39,301,290,285,265,29979,29980,2513,2307]} 1. e4 {[%emt 0:00:05]} e6 {[%emt 0:00:16]} 2. d4 {[%emt 0:00:26]} d5 {[%emt 0:00:03]} 3. e5 {[%emt 0:03:25]} c5 {[%emt 0:00:11]} 4. c3 {[%emt 0:00:06]} Nc6 {[%emt 0:00:05]} 5. Nf3 {[%emt 0:00:10]} Nge7 {[%emt 0:04:03]} 6. Bd3 {[%emt 0:01:41]} cxd4 {[%emt 0:03:01]} 7. cxd4 {[%emt 0:00:22]} Nf5 {[%emt 0:00:34]} 8. Bxf5 {[%emt 0:02:56]} exf5 {[%emt 0:00:09]} 9. Nc3 {[%emt 0:00:06][%cal Bb1c3,Bc3e2,Be2f4][%mdl 32]} Be6 {[%emt 0:00:32]} 10. Ne2 {[%emt 0:09:51]} Be7 {[%emt 0:02:11]} 11. Nf4 {[%emt 0:00:59] C02: French: Advance Variation.} O-O {[%emt 0:07:24]} 12. h4 {[%emt 0:02:31] [#]} Qd7 $146 {[%emt 0:25:03]} ({Predecessor:} 12... Rc8 13. a3 Qa5+ 14. Bd2 Qb5 15. Bc3 h6 16. h5 Na5 17. Qe2 Qb6 18. O-O Nc4 {½-½ (18) Meinhardt,M (2369)-Braun,C (2278) Playchess.com INT 2007}) 13. Ng5 {[%emt 0:12:48] White is slightly better.} Nd8 {[%emt 0:02:32]} 14. Qh5 {[%emt 0:07:06][%csl Gg5][%cal Rh5h7] [#]} h6 {[%emt 0:00:26]} 15. Ngxe6 {[%emt 0:04:24]} Nxe6 {[%emt 0:01:26]} 16. O-O {[%emt 0:15:54]} Nxf4 {[%emt 0:01:05]} 17. Bxf4 {[%emt 0:00:07]} Rac8 {[%emt 0:01:16]} 18. Rac1 {[%emt 0:10:30]} Rxc1 {[%emt 0:03:48]} 19. Rxc1 {[%emt 0:00:08]} Rc8 {[%emt 0:00:12]} (19... Qa4 {with more complications.} 20. g3 Qxd4 21. Qxf5 Qxb2 22. e6 Qf6) 20. Rxc8+ {[%emt 0:04:02]} Qxc8 $14 {[%emt 0:00:05][%mdl 4096] Endgame KQB-KQB} 21. g3 {[%emt 0:00:13]} Bf8 {[%emt 0:02:49]} 22. b3 {[%emt 0:02:21]} Qe6 {[%emt 0:09:39]} 23. Qe2 {[%emt 0:01:47]} Qc6 {[%emt 0:00:27]} 24. h5 {[%emt 0:01:04]} Be7 {[%emt 0:01:09]} 25. Be3 {[%emt 0:00:36]} Bg5 {[%emt 0:07:41]} 26. Kg2 {[%emt 0:01:29]} Qc3 $2 {[%emt 0:03:37][%mdl 8192] [#] This costs Black the game.} ({Black should play} 26... Bd8 $14) 27. Bxg5 $18 {[%emt 0:01:54]} hxg5 {[%emt 0:00:04]} 28. e6 {[%emt 0:00:09][%cal Be5e6,Be6e7][%mdl 32]} Qc8 $2 {[%emt 0:00:19]} (28... fxe6 $18 29. Qxe6+ Kh8 30. Qxd5 Qc8) 29. e7 {[%emt 0:01:31]} Qe8 {[%emt 0:00:05]} 30. Qe5 {[%emt 0:00:10][%csl LRd5,LRf5] Weighted Error Value: White=0.08 (flawless) /Black=0.76} 1-0

[Event "97th Argentine Championship 2022"]
[Site "Barichole"]
[Date "2022.12.10"]
[Round "11.2"]
[White "Peralta, Fernando"]
[Black "Acosta, Pablo Ismael"]
[Result "1-0"]
[ECO "D36"]
[WhiteElo "2587"]
[BlackElo "2461"]
[Annotator "TA"]
[PlyCount "109"]
[EventDate "2022.12.01"]
[EventType "tourn"]
[EventCountry "ARG"]
[SourceTitle "playchess.com"]
[Source "ChessBase"]
[SourceQuality "1"]
[TimeControl "40/5400+30:1800+30"]

{[%evp 22,109,8,6,12,4,40,35,39,24,21,0,16,0,33,16,39,44,55,57,49,24,34,44,46,62,85,73,64,62,66,55,56,33,58,69,51,-27,0,0,0,0,0,0,0,-19,-18,-13,-7,-8,158,133,123,129,120,147,139,158,122,90,88,80,72,86,118,114,215,197,263,256,330,330,330,330,323,323,302,266,685,660,1695,1654,1668,1668,1364,1174,29975,29976,5976,2206]} 1. d4 {[%emt 0:00:03]} d5 {[%emt 0:02:42]} 2. c4 {[%emt 0:00:06]} e6 {[%emt 0:00:22]} 3. Nc3 {[%emt 0:00:50]} Nf6 {[%emt 0:00:17]} 4. cxd5 {[%emt 0:00:08]} exd5 {[%emt 0:00:10]} 5. Bg5 {[%emt 0:00:08]} c6 {[%emt 0:00:59]} 6. e3 {[%emt 0:00:07]} Be7 {[%emt 0:02:12]} 7. Bd3 {[%emt 0:00:09]} Nbd7 {[%emt 0:02:34][%cal Bb8d7,Bd7f8,Bf8e6][%mdl 32]} 8. Nge2 {[%emt 0:00:24]} O-O {[%emt 0:02:16]} 9. O-O {[%emt 0:04:06]} Re8 {[%emt 0:00:26]} 10. Qc2 {[%emt 0:01:34]} Nf8 {[%emt 0:01:58]} 11. f3 {[%emt 0:00:11]} g6 {[%emt 0:17:30] is more profitable than 11...Be6 at the moment.} 12. Rad1 {[%emt 0:02:21]} Ne6 {[%emt 0:00:21] D36: Queen's Gambit Declined: Exchange Variation: Main line (5 Bg5 c6 6 Qc2).} 13. Bh4 {[%emt 0:00:10]} Ng7 {[%emt 0:04:02]} 14. e4 {[%emt 0:06:54]} Be6 {[%emt 0:01:06] White is slightly better.} 15. e5 {[%emt 0:08:42]} Nd7 {[%emt 0:00:30]} 16. Bxe7 {[%emt 0:00:09]} Qxe7 {[%emt 0:00:19] [#]} 17. Ng3 $146 {[%emt 0:12:01]} ({Predecessor:} 17. f4 f5 18. b4 Rec8 19. Rb1 Ne8 20. a4 Nc7 21. g4 fxg4 22. Ng3 Rf8 23. Nd1 {0-1 (51) Yarar,M (1823)-Daghan,D (1999) Konya 2022}) 17... h5 {[%emt 0:05:17]} 18. Rde1 {[%emt 0:09:03]} h4 {[%emt 0:02:58]} 19. Nge2 {[%emt 0:00:17]} Rac8 {[%emt 0:08:53]} 20. Qd2 {[%emt 0:05:52]} Bf5 {[%emt 0:01:36]} 21. g4 {[%emt 0:12:40]} hxg3 {[%emt 0:05:29]} 22. hxg3 {[%emt 0:00:07]} Bxd3 {[%emt 0:00:21]} 23. Qxd3 {[%emt 0:00:03]} Nf8 {[%emt 0:04:11]} 24. Kg2 {[%emt 0:02:39]} Nfe6 {[%emt 0:01:06]} 25. Rh1 {[%emt 0:02:10]} f5 $1 {[%emt 0:01:13]} 26. f4 {[%emt 0:03:49]} Kf7 {[%emt 0:04:22]} 27. Nd1 {[%emt 0:01:49]} (27. Rh7 $5 {[%cal Re1h1]}) 27... Qb4 {[%emt 0:05:29]} 28. Ne3 {[%emt 0:01:55]} (28. a3 {simplifies} Qc4 29. Qxc4 dxc4 30. Ne3) 28... Rh8 {[%emt 0:02:34]} 29. g4 {[%emt 0:14:12]} (29. a3 $14 Qb6 30. b4) 29... Rxh1 {[%emt 0:02:25]} (29... fxg4 $5 {[%cal Rh8h3]} 30. Rb1 Qb5 31. Qxb5 cxb5 $15) 30. Rxh1 {[%emt 0:00:14][%cal Rg4f5,Be1h1,Bh1h6,Bh6f6][%mdl 32]} Qxb2 {[%emt 0:00:10]} 31. Kg3 {[%emt 0:00:39][%cal Bg2g3,Bg3f3,Bf3e4][%mdl 32]} Qb5 $1 {[%emt 0:05:44]} 32. Qc2 {[%emt 0:04:31]} Rg8 {[%emt 0:01:20]} 33. Rh6 {[%emt 0:04:09]} Qb4 $1 {[%emt 0:01:49]} 34. gxf5 {[%emt 0:04:07]} gxf5 {[%emt 0:06:35]} 35. Kf3 $36 {[%emt 0:00:24][%mdl 2048] [#] White is more active.} Qxd4 $1 {[%emt 0:04:40]} 36. Rf6+ $16 {[%emt 0:00:29]} ({Don't do} 36. Nxf5 $6 Qe4+ 37. Qxe4 dxe4+ 38. Kxe4 Nc5+ 39. Kf3 Nxf5 $14) 36... Ke8 {[%emt 0:00:06]} 37. Nxf5 $1 {[%emt 0:00:58][%mdl 64] Dancing on a razor blade.} (37. Nxd4 $2 {too greedy.} Nxd4+ 38. Kf2 Nxc2 39. Nxc2 Nh5 $19) 37... Qe4+ {[%emt 0:02:59]} 38. Qxe4 {[%emt 0:00:06]} dxe4+ {[%emt 0:00:03]} 39. Kxe4 {[%emt 0:00:31] aiming for Nd6+.} Nc5+ {[%emt 0:00:24]} 40. Ke3 {[%emt 0:00:00] Strongly threatening Nd6+. White is much more active.} Nxf5+ {[%emt 0:00:00]} 41. Rxf5 {[%emt 0:02:14][%mdl 4096] Endgame KRN-KRN} Rh8 {[%emt 0:05:11] Inhibits Rh5.} 42. Rg5 {[%emt 0:07:49]} Rh3+ {[%emt 0:03:43]} 43. Ng3 {[%emt 0:00:17]} a5 {[%emt 0:05:10]} (43... Kf8 $16) 44. f5 $18 {[%emt 0:03:08] Black must now prevent Kd4.} Kf7 {[%emt 0:05:52] [#]} (44... Kf8 $142 45. Kd4 b6) 45. Rg6 $1 {[%emt 0:07:23]} Rh4 {[%emt 0:01:37]} 46. e6+ {[%emt 0:01:17]} Kf8 {[%emt 0:00:26]} 47. Rf6+ {[%emt 0:01:27]} Ke8 {[%emt 0:00:28] [#]} 48. Rf7 $1 {[%emt 0:00:39]} a4 {[%emt 0:09:01]} 49. a3 {[%emt 0:02:19]} b5 $2 {[%emt 0:03:08]} (49... Rg4) 50. Rc7 {[%emt 0:01:04]} b4 {[%emt 0:00:26]} 51. axb4 {[%emt 0:01:11]} Rxb4 {[%emt 0:02:01]} 52. Rxc6 {[%emt 0:04:20]} Rb3+ {[%emt 0:01:12]} 53. Kd4 {[%emt 0:01:43]} Rxg3 {[%emt 0:00:34]} 54. Rxc5 {[%emt 0:00:24]} Ke7 {[%emt 0:00:33]} 55. Rc7+ {[%emt 0:00:44] Weighted Error Value: White=0.08 (flawless) /Black=0.38} 1-0